[Event "MČR juniorů a juniorek v rapid šachu 2023"]
[Site "Czech Republic"]
[Date "2023.09.23"]
[Round "6.22"]
[White "Dvorak, Jan"]
[Black "Dudkova, Josefina"]
[Result "1-0"]
[TimeControl "20 min + 5 sec per move"]
[WhiteFideId "23730722"]
[BlackFideId "23712350"]
[WhiteElo "1624"]
[BlackElo "1437"]

1. e4 {[%clk 00:20:08]} d5 {[%clk 00:20:09]} {[%emt 00:00:01]} 2. exd5 {[%clk
00:20:09]} {[%emt 00:00:05]} Qxd5 {[%clk 00:20:12]} 3. Nc3 {[%clk 00:20:12]}
{[%emt 00:00:02]} Qd6 {[%clk 00:20:16]} 4. d4 {[%clk 00:20:11]} {[%emt
00:00:06]} Nf6 {[%clk 00:20:15]} {[%emt 00:00:06]} 5. g3 {[%clk 00:20:01]}
{[%emt 00:00:15]} c6 {[%clk 00:19:55]} {[%emt 00:00:24]} 6. Bg2 {[%clk
00:19:54]} {[%emt 00:00:13]} Bf5 {[%clk 00:19:49]} {[%emt 00:00:11]} 7. Bf4
{[%clk 00:19:44]} {[%emt 00:00:15]} Qb4 {[%clk 00:19:53]} {[%emt 00:00:02]} 8.
Qd2 {[%clk 00:18:11]} {[%emt 00:01:38]} e6 {[%clk 00:19:36]} {[%emt 00:00:22]}
9. Rb1 {[%clk 00:17:01]} {[%emt 00:01:14]} Be7 {[%clk 00:19:32]} {[%emt
00:00:09]} 10. Nge2 {[%clk 00:16:54]} {[%emt 00:00:16]} O-O {[%clk 00:19:06]}
{[%emt 00:00:37]} 11. O-O {[%clk 00:16:30]} {[%emt 00:00:29]} Nbd7 {[%clk
00:18:42]} {[%emt 00:00:29]} 12. Rfe1 {[%clk 00:15:13]} {[%emt 00:01:22]} Nd5
{[%clk 00:17:38]} {[%emt 00:01:09]} 13. Nxd5 {[%clk 00:12:29]} {[%emt
00:02:49]} cxd5 {[%clk 00:17:25]} {[%emt 00:00:18]} 14. c3 {[%clk 00:11:33]}
{[%emt 00:01:00]} Qb5 {[%clk 00:16:41]} {[%emt 00:00:49]} 15. Rbd1 {[%clk
00:11:09]} {[%emt 00:00:30]} Nb6 {[%clk 00:16:20]} {[%emt 00:00:27]} 16. b3
{[%clk 00:10:46]} {[%emt 00:00:27]} a5 {[%clk 00:16:19]} {[%emt 00:00:06]} 17.
Bf1 {[%clk 00:10:48]} {[%emt 00:00:03]} Qc6 {[%clk 00:15:33]} {[%emt 00:00:51]}
18. Nc1 {[%clk 00:10:17]} {[%emt 00:00:37]} Rfc8 {[%clk 00:15:21]} {[%emt
00:00:16]} 19. Re3 {[%clk 00:08:45]} {[%emt 00:01:36]} g5 {[%clk 00:15:06]}
{[%emt 00:00:21]} 20. Be5 {[%clk 00:05:06]} {[%emt 00:03:44]} f6 {[%clk
00:15:02]} {[%emt 00:00:09]} 21. g4 {[%clk 00:05:09]} {[%emt 00:00:02]} Bxg4
{[%clk 00:11:57]} {[%emt 00:03:10]} 22. f3 {[%clk 00:05:10]} {[%emt 00:00:04]}
fxe5 {[%clk 00:10:18]} {[%emt 00:01:44]} 23. fxg4 {[%clk 00:05:12]} {[%emt
00:00:03]} exd4 {[%clk 00:10:06]} {[%emt 00:00:17]} 24. cxd4 {[%clk 00:04:17]}
{[%emt 00:00:59]} Bd6 {[%clk 00:08:20]} {[%emt 00:01:52]} 25. Rh3 {[%clk
00:03:24]} {[%emt 00:00:55]} Bf4 {[%clk 00:07:28]} {[%emt 00:00:59]} 26. Qd3
{[%clk 00:03:02]} {[%emt 00:00:27]} Qc2 {[%clk 00:07:19]} {[%emt 00:00:14]} 27.
Ne2 {[%clk 00:01:23]} {[%emt 00:01:44]} Qxd3 {[%clk 00:05:22]} {[%emt
00:02:02]} 28. Rdxd3 {[%clk 00:01:27]} {[%emt 00:00:01]} Rc2 {[%clk 00:05:08]}
{[%emt 00:00:19]} 29. Nxf4 {[%clk 00:01:10]} {[%emt 00:00:21]} gxf4 {[%clk
00:05:12]} {[%emt 00:00:01]} 30. Rdf3 {[%clk 00:00:36]} {[%emt 00:00:38]} Rf8
{[%clk 00:05:11]} {[%emt 00:00:07]} 31. Bd3 {[%clk 00:00:36]} {[%emt 00:00:05]}
Rc1+ {[%clk 00:02:37]} {[%emt 00:02:38]} 32. Kf2 {[%clk 00:00:32]} {[%emt
00:00:10]} Rf7 {[%clk 00:02:32]} {[%emt 00:00:10]} 33. Rh6 {[%clk 00:00:29]}
{[%emt 00:00:08]} Rc6 {[%clk 00:01:44]} {[%emt 00:00:53]} 34. Rfh3 {[%clk
00:00:21]} {[%emt 00:00:12]} Rg7 {[%clk 00:00:39]} {[%emt 00:01:11]} 35. Rxh7
{[%clk 00:00:11]} {[%emt 00:00:15]} Rxg4 {[%clk 00:00:33]} {[%emt 00:00:11]} 36.
Rxb7 {[%clk 00:00:11]} {[%emt 00:00:05]} a4 {[%clk 00:00:07]} {[%emt 00:00:32]}
37. b4 {[%clk 00:00:09]} {[%emt 00:00:07]} a3 {[%clk 00:00:08]} {[%emt
00:00:04]} 38. Rb8+ {[%clk 00:00:11]} {[%emt 00:00:03]} Kg7 {[%clk 00:00:00]}
{[%emt 00:00:08]} 39. Rh7+ {[%clk 00:00:11]} {[%emt 00:00:03]} Kf6 {[%clk
00:00:00]} {[%emt 00:00:03]} 40. Rf8+ {[%clk 00:00:11]} {[%emt 00:00:04]} Kg5
{[%clk 00:00:00]} {[%emt 00:00:04]} 41. Rg7+ {[%clk 00:00:11]} {[%emt
00:00:12]} Kh5 {[%clk 00:00:00]} {[%emt 00:00:05]} 42. Rh8# {[%clk 00:00:11]}
{[%emt 00:00:03]} 1-0

[Event "MČR juniorů a juniorek v rapid šachu 2023"]
[Site "Czech Republic"]
[Date "2023.09.23"]
[Round "6.23"]
[White "Housa, Vojtech"]
[Black "Stara, Zuzana"]
[Result "1-0"]
[TimeControl "20 min + 5 sec per move"]
[WhiteFideId "23736364"]
[BlackFideId "23733543"]
[WhiteElo "1539"]
[BlackElo "1377"]

1. e4 {[%clk 00:20:08]} {[%emt 00:00:01]} c6 {[%clk 00:20:09]} {[%emt
00:00:01]} 2. d4 {[%clk 00:20:07]} {[%emt 00:00:07]} d5 {[%clk 00:20:13]} 3.
exd5 {[%clk 00:20:11]} {[%emt 00:00:02]} cxd5 {[%clk 00:20:18]} 4. c4 {[%clk
00:20:14]} {[%emt 00:00:01]} Nf6 {[%clk 00:19:52]} {[%emt 00:00:30]} 5. Nc3
{[%clk 00:20:17]} {[%emt 00:00:03]} Nc6 {[%clk 00:19:29]} {[%emt 00:00:28]} 6.
Nf3 {[%clk 00:20:08]} {[%emt 00:00:14]} Bf5 {[%clk 00:19:04]} {[%emt 00:00:30]}
7. Be2 {[%clk 00:19:15]} {[%emt 00:00:58]} e6 {[%clk 00:18:55]} {[%emt
00:00:13]} 8. O-O {[%clk 00:19:04]} {[%emt 00:00:16]} dxc4 {[%clk 00:18:23]}
{[%emt 00:00:37]} 9. Bxc4 {[%clk 00:19:06]} {[%emt 00:00:03]} Bg4 {[%clk
00:17:30]} {[%emt 00:00:58]} 10. d5 {[%clk 00:17:00]} {[%emt 00:02:11]} Ne5
{[%clk 00:16:48]} {[%emt 00:00:47]} 11. Bb5+ {[%clk 00:16:01]} {[%emt
00:01:05]} Nfd7 {[%clk 00:16:15]} {[%emt 00:00:38]} 12. Bxd7+ {[%clk 00:15:10]}
{[%emt 00:00:56]} Nxd7 {[%clk 00:15:38]} {[%emt 00:00:42]} 13. h3 {[%clk
00:14:45]} {[%emt 00:00:30]} Bxf3 {[%clk 00:14:31]} {[%emt 00:01:13]} 14. Qxf3
{[%clk 00:14:47]} {[%emt 00:00:02]} Ne5 {[%clk 00:14:13]} {[%emt 00:00:24]} 15.
Qe4 {[%clk 00:14:16]} {[%emt 00:00:34]} Bd6 {[%clk 00:13:25]} {[%emt 00:00:56]}
16. dxe6 {[%clk 00:13:43]} {[%emt 00:00:37]} fxe6 {[%clk 00:13:18]} {[%emt
00:00:12]} 17. Qxb7 {[%clk 00:13:22]} {[%emt 00:00:26]} O-O {[%clk 00:12:59]}
{[%emt 00:00:25]} 18. Be3 {[%clk 00:12:37]} {[%emt 00:00:48]} Rb8 {[%clk
00:06:46]} {[%emt 00:06:19]} 19. Qxa7 {[%clk 00:12:31]} {[%emt 00:00:11]} Rxb2
{[%clk 00:06:41]} {[%emt 00:00:11]} 20. Ne4 {[%clk 00:12:15]} {[%emt 00:00:21]}
Bb8 {[%clk 00:06:09]} {[%emt 00:00:36]} 21. Qa6 {[%clk 00:11:37]} {[%emt
00:00:41]} Qc7 {[%clk 00:04:59]} {[%emt 00:01:17]} 22. Qxe6+ {[%clk 00:11:19]}
{[%emt 00:00:24]} Nf7 {[%clk 00:04:58]} {[%emt 00:00:06]} 23. Ng3 {[%clk
00:10:47]} {[%emt 00:00:37]} Qb7 {[%clk 00:03:15]} {[%emt 00:01:48]} 24. Qg4
{[%clk 00:09:12]} {[%emt 00:01:36]} Ne5 {[%clk 00:01:53]} {[%emt 00:01:31]} 25.
Qe4 {[%clk 00:08:37]} {[%emt 00:00:36]} Qc7 {[%clk 00:01:27]} {[%emt 00:00:35]}
26. Rfc1 {[%clk 00:08:11]} {[%emt 00:00:29]} Qd6 {[%clk 00:01:13]} {[%emt
00:00:20]} 27. Bc5 {[%clk 00:07:56]} {[%emt 00:00:20]} Qf6 {[%clk 00:00:39]}
{[%emt 00:00:39]} 28. Rc2 {[%clk 00:05:50]} {[%emt 00:02:10]} Rxc2 {[%clk
00:00:34]} {[%emt 00:00:10]} 29. Qxc2 {[%clk 00:05:54]} {[%emt 00:00:02]} Rc8
{[%clk 00:00:27]} {[%emt 00:00:11]} 30. Qb3+ {[%clk 00:05:17]} {[%emt
00:00:42]} Nf7 {[%clk 00:00:17]} {[%emt 00:00:16]} 31. Re1 {[%clk 00:04:55]}
{[%emt 00:00:26]} h6 {[%clk 00:00:11]} {[%emt 00:00:12]} 32. Be3 {[%clk
00:04:48]} {[%emt 00:00:11]} Bxg3 {[%clk 00:00:07]} {[%emt 00:00:09]} 33. fxg3
{[%clk 00:04:49]} {[%emt 00:00:04]} Qe5 {[%clk 00:00:10]} {[%emt 00:00:03]} 34.
Bf2 {[%clk 00:04:44]} {[%emt 00:00:09]} Qd6 {[%clk 00:00:09]} {[%emt 00:00:06]}
35. Rd1 {[%clk 00:04:33]} {[%emt 00:00:16]} Qe7 {[%clk 00:00:12]} {[%emt
00:00:03]} 36. Kh2 {[%clk 00:04:29]} {[%emt 00:00:08]} Re8 {[%clk 00:00:13]}
{[%emt 00:00:04]} 37. Re1 {[%clk 00:04:30]} {[%emt 00:00:04]} Qd8 {[%clk
00:00:11]} {[%emt 00:00:07]} 38. Rxe8+ {[%clk 00:04:02]} {[%emt 00:00:34]} Qxe8
{[%clk 00:00:15]} 39. a4 {[%clk 00:04:03]} {[%emt 00:00:04]} Kh8 {[%clk
00:00:07]} {[%emt 00:00:22]} 40. a5 {[%clk 00:04:06]} {[%emt 00:00:02]} Nd6
{[%clk 00:00:08]} {[%emt 00:00:04]} 41. a6 {[%clk 00:03:53]} {[%emt 00:00:18]}
Qa8 {[%clk 00:00:08]} {[%emt 00:00:06]} 42. a7 {[%clk 00:03:56]} {[%emt
00:00:02]} Ne4 {[%clk 00:00:07]} {[%emt 00:00:05]} 43. Qb8+ {[%clk 00:04:00]}
{[%emt 00:00:02]} 1-0

[Event "MČR juniorů a juniorek v rapid šachu 2023"]
[Site "Czech Republic"]
[Date "2023.09.23"]
[Round "6.24"]
[White "Nikolinko, Tomas"]
[Black "Mikolas, Petr"]
[Result "0-1"]
[TimeControl "20 min + 5 sec per move"]
[WhiteFideId "389749"]
[BlackFideId "23713224"]
[WhiteElo "1327"]
[BlackElo "1514"]

1. e4 {[%clk 00:20:07]} {[%emt 00:00:02]} c5 {[%clk 00:20:09]} 2. Nf3 {[%clk
00:20:09]} {[%emt 00:00:04]} d6 {[%clk 00:20:14]} 3. Bb5+ {[%clk 00:20:09]}
{[%emt 00:00:04]} Nd7 {[%clk 00:20:17]} {[%emt 00:00:02]} 4. d4 {[%clk
00:20:09]} {[%emt 00:00:05]} a6 {[%clk 00:20:03]} {[%emt 00:00:19]} 5. Bxd7+
{[%clk 00:20:07]} {[%emt 00:00:06]} Bxd7 {[%clk 00:19:24]} {[%emt 00:00:45]} 6.
dxc5 {[%clk 00:19:49]} {[%emt 00:00:23]} dxc5 {[%clk 00:19:27]} {[%emt
00:00:02]} 7. Nc3 {[%clk 00:19:48]} {[%emt 00:00:05]} Bc6 {[%clk 00:19:14]}
{[%emt 00:00:19]} 8. O-O {[%clk 00:19:42]} {[%emt 00:00:11]} Qxd1 {[%clk
00:19:03]} {[%emt 00:00:16]} 9. Rxd1 {[%clk 00:19:44]} {[%emt 00:00:03]} Nf6
{[%clk 00:19:06]} {[%emt 00:00:02]} 10. e5 {[%clk 00:19:39]} {[%emt 00:00:10]}
Ne4 {[%clk 00:19:10]} 11. Be3 {[%clk 00:19:21]} {[%emt 00:00:23]} Nxc3 {[%clk
00:19:01]} {[%emt 00:00:14]} 12. bxc3 {[%clk 00:19:23]} {[%emt 00:00:02]} e6
{[%clk 00:18:54]} {[%emt 00:00:13]} 13. Rab1 {[%clk 00:19:22]} {[%emt
00:00:06]} Be7 {[%clk 00:18:03]} {[%emt 00:00:56]} 14. Rd3 {[%clk 00:18:32]}
{[%emt 00:00:55]} Be4 {[%clk 00:17:51]} {[%emt 00:00:17]} 15. Rd2 {[%clk
00:18:28]} {[%emt 00:00:08]} Rd8 {[%clk 00:17:39]} {[%emt 00:00:18]} 16. Rxd8+
{[%clk 00:18:10]} {[%emt 00:00:23]} Kxd8 {[%clk 00:17:42]} {[%emt 00:00:01]} 17.
Rd1+ {[%clk 00:18:08]} {[%emt 00:00:08]} Kc7 {[%clk 00:17:43]} {[%emt
00:00:03]} 18. Rd2 {[%clk 00:18:09]} {[%emt 00:00:04]} b5 {[%clk 00:14:24]}
{[%emt 00:03:24]} 19. Ng5 {[%clk 00:18:00]} {[%emt 00:00:14]} Bg6 {[%clk
00:13:55]} {[%emt 00:00:35]} 20. Kf1 {[%clk 00:17:34]} {[%emt 00:00:30]} h6
{[%clk 00:13:06]} {[%emt 00:00:54]} 21. Nh3 {[%clk 00:17:23]} {[%emt 00:00:16]}
Rd8 {[%clk 00:12:36]} {[%emt 00:00:36]} 22. Ke1 {[%clk 00:17:06]} {[%emt
00:00:21]} Be4 {[%clk 00:11:47]} {[%emt 00:00:54]} 23. f3 {[%clk 00:16:59]}
{[%emt 00:00:13]} Bd5 {[%clk 00:11:51]} 24. Nf4 {[%clk 00:16:53]} {[%emt
00:00:11]} Bxa2 {[%clk 00:11:53]} {[%emt 00:00:03]} 25. Rxd8 {[%clk 00:16:29]}
{[%emt 00:00:29]} Kxd8 {[%clk 00:11:55]} {[%emt 00:00:03]} 26. Nd3 {[%clk
00:16:28]} {[%emt 00:00:06]} Kc7 {[%clk 00:09:27]} {[%emt 00:02:34]} 27. Bxc5
{[%clk 00:16:21]} {[%emt 00:00:12]} Bxc5 {[%clk 00:09:04]} {[%emt 00:00:28]} 28.
Nxc5 {[%clk 00:16:24]} {[%emt 00:00:02]} a5 {[%clk 00:09:08]} 29. Nb3 {[%clk
00:16:09]} {[%emt 00:00:20]} a4 {[%clk 00:08:55]} {[%emt 00:00:18]} 30. Nc1
{[%clk 00:15:56]} {[%emt 00:00:18]} Bc4 {[%clk 00:08:55]} {[%emt 00:00:04]} 31.
g3 {[%clk 00:15:55]} {[%emt 00:00:06]} a3 {[%clk 00:08:55]} {[%emt 00:00:05]}
32. f4 {[%clk 00:15:44]} {[%emt 00:00:16]} a2 {[%clk 00:08:58]} {[%emt
00:00:02]} 33. Nxa2 {[%clk 00:15:48]} {[%emt 00:00:02]} Bxa2 {[%clk 00:09:02]}
34. Kd2 {[%clk 00:15:51]} {[%emt 00:00:02]} Kc6 {[%clk 00:09:03]} {[%emt
00:00:04]} 35. Kd3 {[%clk 00:15:29]} {[%emt 00:00:27]} Bc4+ {[%clk 00:08:51]}
{[%emt 00:00:17]} 36. Kd4 {[%clk 00:15:18]} {[%emt 00:00:16]} h5 {[%clk
00:08:20]} {[%emt 00:00:34]} 37. h3 {[%clk 00:14:44]} {[%emt 00:00:38]} Bf1
{[%clk 00:08:16]} {[%emt 00:00:09]} 38. h4 {[%clk 00:14:09]} {[%emt 00:00:40]}
Bh3 {[%clk 00:08:16]} {[%emt 00:00:05]} 39. c4 {[%clk 00:14:09]} {[%emt
00:00:05]} b4 {[%clk 00:08:08]} {[%emt 00:00:12]} 40. c5 {[%clk 00:13:43]}
{[%emt 00:00:32]} Bf1 {[%clk 00:08:12]} 0-1

[Event "MČR juniorů a juniorek v rapid šachu 2023"]
[Site "Czech Republic"]
[Date "2023.09.23"]
[Round "6.25"]
[White "Glasbergerova, Lucie"]
[Black "Havelkova, Beata"]
[Result "0-1"]
[TimeControl "20 min + 5 sec per move"]
[WhiteFideId "23725184"]
[BlackFideId "23709405"]
[WhiteElo "1314"]
[BlackElo "1494"]

1. e4 {[%clk 00:20:08]} c5 {[%clk 00:20:10]} {[%emt 00:00:01]} 2. Nf3 {[%clk
00:20:11]} {[%emt 00:00:01]} e6 {[%clk 00:20:14]} 3. d4 {[%clk 00:20:13]}
{[%emt 00:00:03]} cxd4 {[%clk 00:20:18]} 4. Nxd4 {[%emt 00:00:02]} a6 5. Nc3
{[%clk 00:20:14]} {[%emt 00:00:07]} Qc7 {[%clk 00:20:26]} 6. Be3 {[%clk
00:20:06]} {[%emt 00:00:13]} Bb4 {[%clk 00:20:29]} {[%emt 00:00:02]} 7. Bd2
{[%clk 00:19:26]} {[%emt 00:00:45]} Nf6 {[%clk 00:19:54]} {[%emt 00:00:41]} 8.
Bd3 {[%clk 00:19:20]} {[%emt 00:00:11]} Bd6 {[%clk 00:18:14]} {[%emt 00:01:44]}
9. Qe2 {[%clk 00:17:06]} {[%emt 00:02:19]} b5 {[%clk 00:17:50]} {[%emt
00:00:29]} 10. Rc1 {[%clk 00:15:07]} {[%emt 00:02:03]} Bb7 {[%clk 00:17:33]}
{[%emt 00:00:23]} 11. O-O {[%clk 00:14:01]} {[%emt 00:01:10]} Bxh2+ {[%clk
00:17:08]} {[%emt 00:00:31]} 12. Kh1 {[%clk 00:14:03]} {[%emt 00:00:03]} h5
{[%clk 00:15:22]} {[%emt 00:01:51]} 13. Nf3 {[%clk 00:12:17]} {[%emt 00:01:51]}
Bf4 {[%clk 00:14:56]} {[%emt 00:00:30]} 14. Bxf4 {[%clk 00:09:32]} {[%emt
00:02:51]} Qxf4 {[%clk 00:14:59]} {[%emt 00:00:02]} 15. g3 {[%clk 00:09:25]}
{[%emt 00:00:11]} Qg4 {[%clk 00:12:53]} {[%emt 00:02:12]} 16. Nh4 {[%clk
00:09:08]} {[%emt 00:00:22]} Qh3+ {[%clk 00:12:09]} {[%emt 00:00:49]} 17. Kg1
{[%clk 00:09:02]} {[%emt 00:00:11]} Ng4 {[%clk 00:10:47]} {[%emt 00:01:27]} 18.
f3 {[%clk 00:06:59]} {[%emt 00:02:08]} Qxg3+ {[%clk 00:10:50]} {[%emt
00:00:03]} 19. Qg2 {[%clk 00:07:02]} Qxh4 {[%clk 00:10:48]} {[%emt 00:00:08]}
20. fxg4 {[%clk 00:06:56]} {[%emt 00:00:10]} hxg4 {[%clk 00:10:48]} {[%emt
00:00:05]} 21. Rf4 {[%clk 00:06:16]} {[%emt 00:00:43]} f5 {[%clk 00:10:14]}
{[%emt 00:00:42]} 22. Rcf1 {[%clk 00:05:43]} {[%emt 00:00:37]} g5 {[%clk
00:09:59]} {[%emt 00:00:20]} 23. R4f2 {[%clk 00:05:39]} {[%emt 00:00:09]} f4
{[%clk 00:09:27]} {[%emt 00:00:37]} 24. Qh2 {[%clk 00:04:31]} {[%emt 00:01:13]}
e5 {[%clk 00:09:07]} {[%emt 00:00:26]} 25. Rg2 {[%clk 00:03:20]} {[%emt
00:01:15]} g3 {[%clk 00:08:51]} {[%emt 00:00:21]} 26. Qxh4 {[%clk 00:03:18]}
{[%emt 00:00:07]} gxh4 {[%clk 00:08:55]} {[%emt 00:00:02]} 27. Rd1 {[%clk
00:01:09]} {[%emt 00:02:14]} h3 {[%clk 00:08:34]} {[%emt 00:00:25]} 28. Rgd2
{[%emt 00:00:44]} f3 {[%clk 00:08:21]} {[%emt 00:00:16]} 29. Bf1 {[%clk
00:00:17]} {[%emt 00:00:19]} g2 {[%clk 00:08:00]} {[%emt 00:00:27]} 30. Bxg2
{[%clk 00:00:00]} {[%emt 00:00:17]} 0-1

[Event "MČR juniorů a juniorek v rapid šachu 2023"]
[Site "Czech Republic"]
[Date "2023.09.23"]
[Round "6.26"]
[White "Boff, Ondrej"]
[Black "Jun, Rostislav"]
[Result "1-0"]
[TimeControl "20 min + 5 sec per move"]
[WhiteFideId "23733950"]
[BlackFideId "23719524"]
[WhiteElo "1486"]
[BlackElo "1317"]

1. e4 {[%clk 00:20:07]} {[%emt 00:00:02]} c5 {[%clk 00:20:06]} {[%emt
00:00:06]} 2. Nf3 {[%clk 00:20:09]} {[%emt 00:00:02]} Nc6 {[%clk 00:20:10]}
{[%emt 00:00:01]} 3. Bb5 {[%clk 00:20:12]} {[%emt 00:00:02]} e6 {[%clk
00:20:13]} {[%emt 00:00:02]} 4. Bxc6 {[%clk 00:20:08]} {[%emt 00:00:08]} bxc6
{[%clk 00:20:17]} {[%emt 00:00:02]} 5. e5 {[%clk 00:20:10]} {[%emt 00:00:03]}
Bb7 {[%clk 00:20:18]} {[%emt 00:00:05]} 6. O-O {[%clk 00:20:05]} {[%emt
00:00:08]} d6 {[%clk 00:20:22]} {[%emt 00:00:02]} 7. exd6 {[%clk 00:19:59]}
{[%emt 00:00:11]} Bxd6 {[%clk 00:20:21]} {[%emt 00:00:06]} 8. d3 {[%clk
00:19:56]} {[%emt 00:00:07]} Nf6 {[%clk 00:20:23]} {[%emt 00:00:03]} 9. Nc3
{[%clk 00:19:44]} {[%emt 00:00:17]} O-O {[%clk 00:20:20]} {[%emt 00:00:08]} 10.
Bg5 {[%clk 00:19:43]} {[%emt 00:00:06]} Be7 {[%clk 00:20:23]} {[%emt 00:00:03]}
11. Qd2 {[%emt 00:02:00]} Qd7 {[%emt 00:01:14]} 12. Rad1 {[%clk 00:18:41]}
{[%emt 00:00:19]} Rad8 {[%clk 00:18:07]} {[%emt 00:00:04]} 13. Ne5 {[%clk
00:18:16]} {[%emt 00:00:31]} Qc8 {[%clk 00:18:08]} {[%emt 00:00:05]} 14. Rfe1
{[%emt 00:01:46]} Rfe8 {[%clk 00:16:57]} {[%emt 00:00:25]} 15. Qe2 {[%emt
00:01:17]} Nd5 {[%clk 00:15:51]} {[%emt 00:00:43]} 16. Bxe7 {[%clk 00:16:25]}
{[%emt 00:00:20]} Nxc3 {[%clk 00:15:27]} {[%emt 00:00:30]} 17. bxc3 {[%clk
00:16:27]} {[%emt 00:00:03]} Rxe7 {[%clk 00:15:31]} {[%emt 00:00:01]} 18. Qe3
{[%emt 00:02:42]} Ree8 {[%clk 00:11:43]} {[%emt 00:01:24]} 19. Qxc5 {[%clk
00:15:37]} {[%emt 00:00:46]} Rd5 {[%clk 00:11:17]} {[%emt 00:00:32]} 20. Qe3
{[%clk 00:15:15]} {[%emt 00:00:25]} Qa8 {[%clk 00:11:12]} {[%emt 00:00:12]} 21.
Qf4 {[%clk 00:14:54]} {[%emt 00:00:24]} Re7 {[%clk 00:11:04]} {[%emt 00:00:14]}
22. Rb1 {[%clk 00:14:46]} {[%emt 00:00:13]} Rb5 {[%clk 00:10:45]} {[%emt
00:00:25]} 23. a4 {[%clk 00:14:19]} {[%emt 00:00:32]} Rb6 {[%clk 00:10:04]}
{[%emt 00:00:46]} 24. Nc4 {[%clk 00:14:03]} {[%emt 00:00:20]} Rxb1 {[%clk
00:09:52]} {[%emt 00:00:18]} 25. Rxb1 {[%clk 00:14:06]} {[%emt 00:00:02]} c5
{[%clk 00:09:47]} {[%emt 00:00:09]} 26. f3 {[%clk 00:14:08]} {[%emt 00:00:03]}
f6 {[%clk 00:09:08]} {[%emt 00:00:45]} 27. Nd6 {[%clk 00:13:50]} {[%emt
00:00:21]} e5 {[%clk 00:08:45]} {[%emt 00:00:30]} 28. Qc4+ {[%clk 00:13:44]}
{[%emt 00:00:10]} Kf8 {[%clk 00:07:53]} {[%emt 00:00:58]} 29. Qb5 {[%clk
00:13:35]} {[%emt 00:00:13]} Bc6 {[%clk 00:07:23]} {[%emt 00:00:36]} 30. Qxc5
{[%clk 00:11:09]} {[%emt 00:02:30]} Bxa4 {[%clk 00:07:05]} {[%emt 00:00:23]} 31.
Nc8 {[%clk 00:11:04]} {[%emt 00:00:09]} 1-0